Workbook

Sheet 1. Forside
A1: Langeland Spildevand A/S
D8: Bilag A
D13: Indholdsfortegnelse
C16: Fane nr. 2 | D16: Samlet prisloft
C17: Fane nr. 3 | D17: Driftsomkostninger
C18: Fane nr. 4 | D18: Historiske investeringer
C19: Fane nr. 5 | D19: Gennemførte investeringer
C20: Fane nr. 6 | D20: Korrektion investeringer
C21: Fane nr. 7 | D21: Planlagte investeringer
C22: Fane nr. 8 | D22: 1:1 omkostninger
C23: Fane nr. 9 | D23: Miljø- og servicemål
C24: Fane nr. 10 | D24: Klimatilpasning
C25: Fane nr. 11 | D25: Nettofinansielle poster
C26: Fane nr. 12 | D26: Over- eller underdækning
C27: Fane nr. 13 | D27: Kontrol med indtægtsrammen og oversigt over ekstraordinære effektiviseringsgevinster

Sheet 2. Samlet prisloft
A1: ='1. Forside'!A1 -> Langeland Spildevand A/S
B4: Fane 2. Samlet prisloft for 2015
B6: Driftsomkostninger
B7: Driftsomkostninger i prisloftet for 2014 | C7: ='3. Driftsomkostninger'!C20 -> 12463182.97 | D7: kr.
B8: Bortfald af væsentlige omkostninger | C8: =-'3. Driftsomkostninger'!C16 -> 0 | D8: kr.
B9: Korrektion for prisudviklingen 2014-2015 | C9: ='3. Driftsomkostninger'!C22 -> 9970.546376 | D9: kr.
B10: Forhøjelse til effektivt niveau iht. benchmarkingen | C10: ='3. Driftsomkostninger'!C28 -> 0 | D10: kr.
B11: Korrektion for generelt effektiviseringskrav | C11: =-'3. Driftsomkostninger'!C34 -> -54838.00507 | D11: kr.
B12: Korrektion for individuelt effektiviseringskrav | C12: =-'3. Driftsomkostninger'!C43 -> 0 | D12: kr.
B13: Driftsomkostninger i alt | C13: =SUM(C7:C12) -> 12418315.51 | D13: kr. | E13: =C13 -> 12418315.51 | F13: kr.
B14: Investeringer
B15: Tillæg for historiske investeringer | C15: ='4. Historiske investeringer'!C9 -> 13423806.5 | D15: kr.
B16: Tillæg for gennemførte investeringer i 2011-2013 | C16: ='5. Gennemførte investeringer'!F59 -> 1018356.8 | D16: kr.
B17: Korrektion af tillæg for planlagte investeringer vedrørende 2013 | C17: ='6. Korrektion investeringer'!C10 -> -392196.56 | D17: kr.
B18: Tillæg for planlagte investeringer i 2014 og 2015 | C18: ='7. Planlagte investeringer'!F102 -> 1349966.667 | D18: kr.
B19: Investeringstillæg i alt | C19: =SUM(C15:C18) -> 15399933.4 | D19: kr. | E19: =C19 -> 15399933.4 | F19: kr.
B20: Øvrige omkostninger mv.
B21: Tillæg for 1:1 omkostninger i 2015 | C21: ='8. 1-1 omkostninger'!C10 -> 459000 | D21: kr.
B22: Tillæg vedr. revisorerklæringer og DANVA/FVD-kontingent | C22: ='8. 1-1 omkostninger'!C18 -> 36000 | D22: kr.
B23: Korrektion ift. faktiske 1:1 omkostninger i 2013 | C23: ='8. 1-1 omkostninger'!C24 -> -230744 | D23: kr.
B24: Tillæg for driftsomkostninger til miljø- og servicemål i 2015 | C24: ='9. Miljø- og servicemål'!C8 -> 25000 | D24: kr.
B25: Korrektion ift. faktiske driftsomkostninger til miljø- og servicemål i 2013 | C25: ='9. Miljø- og servicemål'!C15 -> 0 | D25: kr.
B26: Tillæg for driftsomkostninger til medfinansiering af klimatilpasningsprojekter i 2015 | C26: ='10. Klimatilpasning'!C9 -> 0 | D26: kr.
B27: Korrektion ift. faktiske omkostninger til medfinansiering af klimatilpasningsprojekter i 2013 | C27: ='10. Klimatilpasning'!C16 -> 0 | D27: kr.
B28: Tillæg/fradrag for nettofinansielle poster i 2015 | C28: ='11. Nettofinansielle poster'!C9 -> 610000 | D28: kr.
B29: Korrektion ift. faktiske nettofinansielle poster i 2013 | C29: ='11. Nettofinansielle poster'!C16 -> 242870 | D29: kr.
B30: Øvrige omkostninger mv. i alt | C30: =SUM(C21:C29) -> 1142126 | D30: kr. | E30: =C30 -> 1142126 | F30: kr.
B31: Historisk over- eller underdækning
B32: Tillæg/fradrag for over- eller underdækning til og med 2010 | C32: ='12. Over- eller underdækning'!C11 -> -802337.2487 | D32: kr. | E32: =C32 -> -802337.2487 | F32: kr.
B33: Korrektion i forhold til tidligere indtægtsramme
B34: Korrektion for overholdelse af indtægtsramme i prisloft 2013 | C34: ='13. Kontrol med indtægtsrammen'!E27 -> 3875175.894 | D34: kr. | E34: =C34 -> 3875175.894 | F34: kr.
B35: Samlet prisloft
B36: Indtægtsramme i 2015 | E36: =SUM(E13:E34) -> 32033213.56 | F36: kr.
B37: Debiteret vandmængde i 2013 | E37: 631320 | F37: m3
B38: Prisloft 2015 | E38: =E36/E37 -> 50.74005823 | F38: kr./m3

Sheet 3. Driftsomkostninger
A1: ='1. Forside'!A1 -> Langeland Spildevand A/S
B4: Fane 3. Driftsomkostninger
B6: Driftsomkostningerne i prisloftet for 2014
B7: Korrigerede driftsomkostninger i prisloftet for 2013 (DOiPL 2013) | C7: 12278998 | D7: kr.
B8: Prisfremskrivning 1,5 pct. | C8: =0.015*SUM(C7:C7) -> 184184.97 | D8: kr.
B9: Generelt effektiviseringskrav (0 pct.) | C9: 0 | D9: kr.
B10: Individuelt effektiviseringskrav | C10: 0 | D10: kr.
B11: Driftsomkostningerne i prisloftet for 2014 (DOiPL 2014) | C11: =SUM(C7:C10) -> 12463182.97 | D11: kr.
B14: Korrektion for forventet bortfald af væsentlige omkostninger
B15: Selskabets indberettede bortfald af væsentlige omkostninger inden 2015 | C15: 0 | D15: kr.
B16: Korrektion for forventet bortfald | C16: =SUM(C15:C15) -> 0 | D16: kr.
B19: Korrektion for prisudviklingen fra 2014-2015
B20: Driftsomkostningerne i prisloftet for 2014 | C20: =C11-C16 -> 12463182.97 | D20: kr.
B21: Prisudvikling 2014 - 2015 | C21: 0.08 | D21: pct.
B22: Korrektion for prisudvikling | C22: =C20*(C21/100) -> 9970.546376 | D22: kr.
B25: Eventuel forhøjelse til effektivt niveau iht. benchmarkingen
B26: Selskabets effektive driftsomkostninger iht. benchmarkingen | C26: 12373448 | D26: kr.
B27: Selskabets pristalskorrigerede driftsomkostninger i 2015-niveau | C27: =C20+C22 -> 12473153.52 | D27: kr.
B28: Eventuel forhøjelse til effektivt niveau | C28: =IF(C27>C26,0,C26-C27) -> 0 | D28: kr.
B31: Korrektion for generelt effektiviseringskrav
B32: Driftsomkostningerne i prisloftet for 2014 | C32: =C20 -> 12463182.97 | D32: kr.
B33: Generelt effektiviseringskrav | C33: 0.44 | D33: pct.
B34: Endeligt generelt effektiviseringskrav | C34: =C32*(C33/100) -> 54838.00507 | D34: kr.
B37: Korrektion for individuelt effektiviseringskrav
B38: Rå effektiviseringspotentiale | C38: 89735 | D38: kr.
B39: Effektiviseringspotentiale efter eventuel korrektion for særlige forhold | C39: 89735 | D39: kr.
B40: Effektiviseringspotentiale efter forsigtighedshensyn | C40: 0 | D40: kr.
B41: Effektiviseringspotentiale efter eventuel korrektion for sammensætning af signifikante costdrivere | C41: 0 | D41: kr.
B42: Umiddelbart effektiviseringskrav | C42: =C41/4 -> 0 | D42: kr.
B43: Endeligt individuelt effektiviseringskrav | C43: =IF(C42>0.05*C20,0.05*C20,IF(C42<0.01*C20,0,C42)) -> 0 | D43: kr.

Sheet 4. Historiske investeringer
A1: ='3. Driftsomkostninger'!A1 -> Langeland Spildevand A/S
B4: Fane 4. Historiske investeringer
B6: Tillæg for historiske investeringer
B7: Værdi af selskabets materielle anlægsaktiver pr. 1. januar 2010 | C7: 523300503.3 | D7: kr.
B8: Den årlige standardafskrivning på de materielle anlægsaktiver iht. POLKA | C8: 13423806.5 | D8: kr.
B9: Tillæg i alt i 2015 | C9: =C8 -> 13423806.5 | D9: kr.

Sheet 5. Gennemførte investeringer
A1: ='4. Historiske investeringer'!A1 -> Langeland Spildevand A/S
B4: Fane 5. Gennemførte investeringer i 2010 - 2013
B6: Tillæg for gennemførte investeringer i 2013
B7: Beskrivelse af investeringen | C7: Årstal | D7: Std. levetid (år) | E7: Anskaffelses-pris (kr.) | F7: Afskrivning
B8: Ledningsnet = Ø 200 mm | C8: 2013 | D8: 75 | E8: 3179862 | F8: =E8/D8 -> 42398.16 | G8: kr.
B9: Stik | C9: 2013 | D9: 75 | E9: 187144 | F9: =E9/D9 -> 2495.253333 | G9: kr.
B10: Brønde | C10: 2013 | D10: 75 | E10: 772734 | F10: 10303.12 | G10: kr.
B11: Tryksatte minipumpestationer (husstandssystemer) | C11: 2013 | D11: 30 | E11: 207053 | F11: 6901.766667 | G11: kr.
B12: Ledningsnet = Ø 200 mm | C12: 2013 | D12: 75 | E12: 2934483 | F12: 39126.44 | G12: kr.
B13: Stik | C13: 2013 | D13: 75 | E13: 133611 | F13: 1781.48 | G13: kr.
B14: Brønde | C14: 2013 | D14: 75 | E14: 521720 | F14: 6956.266667 | G14: kr.
B15: Tryksatte minipumpestationer (husstandssystemer) | C15: 2013 | D15: 30 | E15: 244318 | F15: 8143.933333 | G15: kr.
B16: Ledningsnet = Ø 200 mm | C16: 2013 | D16: 75 | E16: 237354 | F16: 3164.72 | G16: kr.
B17: Stik | C17: 2013 | D17: 75 | E17: 15233 | F17: 203.1066667 | G17: kr.
B18: Brønde | C18: 2013 | D18: 75 | E18: 70024 | F18: 933.6533333 | G18: kr.
B19: Tryksatte minipumpestationer (husstandssystemer) | C19: 2013 | D19: 30 | E19: 22157 | F19: 738.5666667 | G19: kr.
B20: Ledningsnet = Ø 200 mm | C20: 2013 | D20: 75 | E20: 1756324 | F20: 23417.65333 | G20: kr.
B21: Stik | C21: 2013 | D21: 75 | E21: 124815 | F21: 1664.2 | G21: kr.
B22: Brønde | C22: 2013 | D22: 75 | E22: 682321 | F22: 9097.613333 | G22: kr.
B23: Tryksatte minipumpestationer (husstandssystemer) | C23: 2013 | D23: 30 | E23: 71323 | F23: 2377.433333 | G23: kr.
B24: Indløb med riste, SRO | C24: 2013 | D24: 10 | E24: 905824 | F24: 90582.4 | G24: kr.
B25: Indløb med riste, Mek/EL | C25: 2013 | D25: 20 | E25: 14599 | F25: 729.95 | G25: kr.
B26: Ledningsnet = Ø 200 mm | C26: 2013 | D26: 75 | E26: 54276 | F26: 723.68 | G26: kr.
B27: Ø 200 mm < Ledningsnet = Ø 500 mm | C27: 2013 | D27: 75 | E27: 317088 | F27: 4227.84 | G27: kr.
B28: Ø 500 mm < Ledningsnet = Ø 800 mm | C28: 2013 | D28: 75 | E28: 1187445 | F28: 15832.6 | G28: kr.
B29: Stik | C29: 2013 | D29: 75 | E29: 101826 | F29: 1357.68 | G29: kr.
B30: Brønde | C30: 2013 | D30: 75 | E30: 497610 | F30: 6634.8 | G30: kr.
B31: Ledningsnet = Ø 200 mm | C31: 2013 | D31: 75 | E31: 1495330 | F31: 19937.73333 | G31: kr.
B32: Stik | C32: 2013 | D32: 75 | E32: 103354 | F32: 1378.053333 | G32: kr.
B33: Brønde | C33: 2013 | D33: 75 | E33: 406802 | F33: 5424.026667 | G33: kr.
B34: Tryksatte minipumpestationer (husstandssystemer) | C34: 2013 | D34: 30 | E34: 132293 | F34: 4409.766667 | G34: kr.
B35: Ledningsnet = Ø 200 mm | C35: 2013 | D35: 75 | E35: 1042242 | F35: 13896.56 | G35: kr.
B36: Stik | C36: 2013 | D36: 75 | E36: 52455 | F36: 699.4 | G36: kr.
B37: Brønde | C37: 2013 | D37: 75 | E37: 187493 | F37: 2499.906667 | G37: kr.
B38: Tryksatte minipumpestationer (husstandssystemer) | C38: 2013 | D38: 30 | E38: 80700 | F38: 2690 | G38: kr.
B39: Ledningsnet = Ø 200 mm | C39: 2013 | D39: 75 | E39: 1866297 | F39: 24883.96 | G39: kr.
B40: Stik | C40: 2013 | D40: 75 | E40: 134690 | F40: 1795.866667 | G40: kr.
B41: Brønde | C41: 2013 | D41: 75 | E41: 345143 | F41: 4601.906667 | G41: kr.
B42: Tryksatte minipumpestationer (husstandssystemer) | C42: 2013 | D42: 30 | E42: 235707 | F42: 7856.9 | G42: kr.
B43: Ledningsnet = Ø 200 mm | C43: 2013 | D43: 75 | E43: 6126 | F43: 81.68 | G43: kr.
B44: Stik | C44: 2013 | D44: 75 | E44: 12251 | F44: 163.3466667 | G44: kr.
B45: Brønde | C45: 2013 | D45: 75 | E45: 33487 | F45: 446.4933333 | G45: kr.
B46: Pumpestationer i brønde (< 6,25 m2), Mek/EL | C46: 2013 | D46: 20 | E46: 570591 | F46: 28529.55 | G46: kr.
B47: Pumpestationer i brønde (< 6,25 m2), SRO | C47: 2013 | D47: 10 | E47: 101891 | F47: 10189.1 | G47: kr.
B48: Ledningsnet = Ø 200 mm | C48: 2013 | D48: 75 | E48: 1655 | F48: 22.06666667 | G48: kr.
B49: Stik | C49: 2013 | D49: 75 | E49: 3311 | F49: 44.14666667 | G49: kr.
B50: Brønde | C50: 2013 | D50: 75 | E50: 9049 | F50: 120.6533333 | G50: kr.
B51: Strømpeforing = Ø 200 mm | C51: 2013 | D51: 50 | E51: 469676 | F51: 9393.52 | G51: kr.
B52: Strømpeforing Ø 200 mm < Ledningsnet = Ø 500 mm | C52: 2013 | D52: 50 | E52: 1069763 | F52: 21395.26 | G52: kr.
B53: Brønde | C53: 2013 | D53: 50 | E53: 440826 | F53: 8816.52 | G53: kr.
B54: Stik | C54: 2013 | D54: 50 | E54: 549563 | F54: 10991.26 | G54: kr.
B55: Stik | C55: 2013 | D55: 75 | E55: 166534 | F55: 2220.453333 | G55: kr.
B56: Brønde | C56: 2013 | D56: 75 | E56: 44083 | F56: 587.7733333 | G56: kr.
B57: Tillæg for 2013 | F57: =SUM(F8:F56) -> 462868.22 | G57: kr.
B58: Tillæg for 2010 - 2012 | F58: 555488.58 | G58: kr.
B59: Samlet tillæg for gennemførte investeringer | F59: =F57+F58 -> 1018356.8 | G59: kr.

Sheet 6. Korrektion investeringer
A1: ='5. Gennemførte investeringer'!A1 -> Langeland Spildevand A/S
B4: Fane 6. Korrektion af tillæg for planlagte investeringer
B6: Korrektion af tillæg for planlagte investeringer vedr. 2013
B7: Tillæg for planlagte investeringer i 2013 i prisloft 2013 | C7: 285700 | D7: kr.
B8: Tillæg for planlagte investeringer i 2013 i prisloft 2014 | C8: 1032233 | D8: kr.
B9: Selskabets faktiske afskrivninger på gennemførte investeringer i 2013 | C9: ='5. Gennemførte investeringer'!F57 -> 462868.22 | D9: kr.
B10: Korrektion af tillæg for planlagte investeringer vedr. 2013 | C10: =C9-C7+C9-C8 -> -392196.56 | D10: kr.

Sheet 7. Planlagte investeringer
A1: ='6. Korrektion investeringer'!A1 -> Langeland Spildevand A/S
B4: Fane 7. Planlagte investeringer
B6: Tillæg for planlagte investeringer i 2014 og 2015
B7: Beskrivelse af investeringen | C7: Årstal | D7: Std. levetid (år) | E7: Anskaffelses-pris (kr.) | F7: Afskrivning
B8: Ledningsnet = Ø 200 mm | C8: 2014 | D8: 75 | E8: 50000 | F8: =E8/D8 -> 666.6666667 | G8: kr.
B9: Brønde | C9: 2014 | D9: 75 | E9: 25000 | F9: =E9/D9 -> 333.3333333 | G9: kr.
B10: Stik | C10: 2014 | D10: 75 | E10: 25000 | F10: =E10/D10 -> 333.3333333 | G10: kr.
B11: Ledningsnet = Ø 200 mm | C11: 2014 | D11: 75 | E11: 50000 | F11: 666.6666667 | G11: kr.
B12: Brønde | C12: 2014 | D12: 75 | E12: 25000 | F12: 333.3333333 | G12: kr.
B13: Stik | C13: 2014 | D13: 75 | E13: 25000 | F13: 333.3333333 | G13: kr.
B14: Ledningsnet = Ø 200 mm | C14: 2014 | D14: 75 | E14: 1100000 | F14: 14666.66667 | G14: kr.
B15: Ø 800 mm < Ledningsnet = Ø 1000 mm | C15: 2014 | D15: 75 | E15: 400000 | F15: 5333.333333 | G15: kr.
B16: Brønde | C16: 2014 | D16: 75 | E16: 350000 | F16: 4666.666667 | G16: kr.
B17: Stik | C17: 2014 | D17: 75 | E17: 350000 | F17: 4666.666667 | G17: kr.
B18: Strømpeforing = Ø 200 mm | C18: 2014 | D18: 50 | E18: 200000 | F18: 4000 | G18: kr.
B19: Efterklaringstanke, SRO | C19: 2014 | D19: 10 | E19: 210000 | F19: 21000 | G19: kr.
B20: Efterklaringstanke, Mek/El | C20: 2014 | D20: 20 | E20: 200000 | F20: 10000 | G20: kr.
B21: Ledningsnet = Ø 200 mm | C21: 2014 | D21: 75 | E21: 180000 | F21: 2400 | G21: kr.
B22: Stik | C22: 2014 | D22: 75 | E22: 30000 | F22: 400 | G22: kr.
B23: Brønde | C23: 2014 | D23: 75 | E23: 30000 | F23: 400 | G23: kr.
B24: Tryksatte minipumpestationer (husstandssystemer) | C24: 2014 | D24: 30 | E24: 60000 | F24: 2000 | G24: kr.
B25: Ledningsnet = Ø 200 mm | C25: 2014 | D25: 75 | E25: 1200000 | F25: 16000 | G25: kr.
B26: Stik | C26: 2014 | D26: 75 | E26: 200000 | F26: 2666.666667 | G26: kr.
B27: Brønde | C27: 2014 | D27: 75 | E27: 200000 | F27: 2666.666667 | G27: kr.
B28: Tryksatte minipumpestationer (husstandssystemer) | C28: 2014 | D28: 30 | E28: 200000 | F28: 6666.666667 | G28: kr.
B29: Ledningsnet = Ø 200 mm | C29: 2014 | D29: 75 | E29: 85000 | F29: 1133.333333 | G29: kr.
B30: Stik | C30: 2014 | D30: 75 | E30: 20000 | F30: 266.6666667 | G30: kr.
B31: Brønde | C31: 2014 | D31: 75 | E31: 20000 | F31: 266.6666667 | G31: kr.
B32: Tryksatte minipumpestationer (husstandssystemer) | C32: 2014 | D32: 30 | E32: 25000 | F32: 833.3333333 | G32: kr.
B33: Ledningsnet = Ø 200 mm | C33: 2014 | D33: 75 | E33: 115000 | F33: 1533.333333 | G33: kr.
B34: Brønde | C34: 2014 | D34: 75 | E34: 30000 | F34: 400 | G34: kr.
B35: Stik | C35: 2014 | D35: 75 | E35: 30000 | F35: 400 | G35: kr.
B36: Tryksatte minipumpestationer (husstandssystemer) | C36: 2014 | D36: 30 | E36: 50000 | F36: 1666.666667 | G36: kr.
B37: Ledningsnet = Ø 200 mm | C37: 2014 | D37: 75 | E37: 85000 | F37: 1133.333333 | G37: kr.
B38: Brønde | C38: 2014 | D38: 75 | E38: 20000 | F38: 266.6666667 | G38: kr.
B39: Stik | C39: 2014 | D39: 75 | E39: 20000 | F39: 266.6666667 | G39: kr.
B40: Tryksatte minipumpestationer (husstandssystemer) | C40: 2014 | D40: 30 | E40: 25000 | F40: 833.3333333 | G40: kr.
B41: Arbejdsplads | C41: 2014 | D41: 5 | E41: 100000 | F41: 20000 | G41: kr.
B42: Beluftningstanke, SRO | C42: 2014 | D42: 10 | E42: 275000 | F42: 27500 | G42: kr.
B43: Arbejdsplads | C43: 2014 | D43: 5 | E43: 750000 | F43: 150000 | G43: kr.
B44: Arbejdsplads | C44: 2014 | D44: 5 | E44: 786000 | F44: 157200 | G44: kr.
B45: Pumpestationer i brønde (< 6,25 m2), Mek/EL | C45: 2014 | D45: 20 | E45: 300000 | F45: 15000 | G45: kr.
B46: Pumpestationer i brønde (< 6,25 m2), SRO | C46: 2014 | D46: 10 | E46: 295000 | F46: 29500 | G46: kr.
B47: Beluftningstanke, Mek/EL | C47: 2014 | D47: 20 | E47: 400000 | F47: 20000 | G47: kr.
B48: Forsinkelsesbassiner, lukkede uden automatisk rensning og SRO Miljøklasse B (mindre end 1.000 m3) | C48: 2014 | D48: 50 | E48: 250000 | F48: 5000 | G48: kr.
B49: Ledningsnet = Ø 200 mm | C49: 2014 | D49: 75 | E49: 5000000 | F49: 66666.66667 | G49: kr.
B50: Ø 200 mm < Ledningsnet = Ø 500 mm | C50: 2014 | D50: 75 | E50: 2000000 | F50: 26666.66667 | G50: kr.
B51: Stik | C51: 2014 | D51: 75 | E51: 2000000 | F51: 26666.66667 | G51: kr.
B52: Brønde | C52: 2014 | D52: 75 | E52: 1700000 | F52: 22666.66667 | G52: kr.
B53: Tryksatte minipumpestationer (husstandssystemer) | C53: 2014 | D53: 30 | E53: 100000 | F53: 3333.333333 | G53: kr.
B54: Mindre renseanlæg < 5.000 PE uden mulighed for opdeling | C54: 2014 | D54: 40 | E54: 2500000 | F54: 62500 | G54: kr.
B55: Ledningsnet = Ø 200 mm | C55: 2014 | D55: 75 | E55: 500000 | F55: 6666.666667 | G55: kr.
B56: Ø 200 mm < Ledningsnet = Ø 500 mm | C56: 2014 | D56: 75 | E56: 500000 | F56: 6666.666667 | G56: kr.
B57: Brønde | C57: 2014 | D57: 75 | E57: 300000 | F57: 4000 | G57: kr.
B58: Stik | C58: 2014 | D58: 75 | E58: 400000 | F58: 5333.333333 | G58: kr.
B59: Strømpeforing Ø 200 mm < Ledningsnet = Ø 500 mm | C59: 2014 | D59: 50 | E59: 1500000 | F59: =E59/D59 -> 30000 | G59: kr.
B60: Strømpeforing Ø 200 mm < Ledningsnet = Ø 500 mm | C60: 2014 | D60: 50 | E60: 1500000 | F60: 30000 | G60: kr.
B61: Jordbassin Klasse B | C61: 2014 | D61: 50 | E61: 750000 | F61: 15000 | G61: kr.
B62: Ledningsnet = Ø 200 mm | C62: 2015 | D62: 75 | E62: 300000 | F62: 4000 | G62: kr.
B63: Jordbassin Klasse A | C63: 2015 | D63: 50 | E63: 300000 | F63: 6000 | G63: kr.
B64: Pumpestationer i brønde (< 6,25 m2), Mek/EL | C64: 2015 | D64: 20 | E64: 50000 | F64: 2500 | G64: kr.
B65: Beluftningstanke, Konstruktioner | C65: 2015 | D65: 60 | E65: 1000000 | F65: 16666.66667 | G65: kr.
B66: Beluftningstanke, Mek/EL | C66: 2015 | D66: 20 | E66: 900000 | F66: 45000 | G66: kr.
B67: Beluftningstanke, SRO | C67: 2015 | D67: 10 | E67: 100000 | F67: 10000 | G67: kr.
B68: Efterklaringstanke, Mek/El | C68: 2015 | D68: 20 | E68: 100000 | F68: 5000 | G68: kr.
B69: Efterklaringstanke, SRO | C69: 2015 | D69: 10 | E69: 50000 | F69: 5000 | G69: kr.
B70: Ledningsnet = Ø 200 mm | C70: 2015 | D70: 75 | E70: 2500000 | F70: 33333.33333 | G70: kr.
B71: Brønde | C71: 2015 | D71: 75 | E71: 300000 | F71: 4000 | G71: kr.
B72: Stik | C72: 2015 | D72: 75 | E72: 300000 | F72: 4000 | G72: kr.
B73: Tryksatte minipumpestationer (husstandssystemer) | C73: 2015 | D73: 30 | E73: 200000 | F73: 6666.666667 | G73: kr.
B74: Ledningsnet = Ø 200 mm | C74: 2015 | D74: 75 | E74: 4800000 | F74: 64000 | G74: kr.
B75: Brønde | C75: 2015 | D75: 75 | E75: 540000 | F75: 7200 | G75: kr.
B76: Stik | C76: 2015 | D76: 75 | E76: 540000 | F76: 7200 | G76: kr.
B77: Tryksatte minipumpestationer (husstandssystemer) | C77: 2015 | D77: 30 | E77: 120000 | F77: 4000 | G77: kr.
B78: Ø 200 mm < Ledningsnet = Ø 500 mm | C78: 2015 | D78: 75 | E78: 3800000 | F78: 50666.66667 | G78: kr.
B79: Brønde | C79: 2015 | D79: 75 | E79: 500000 | F79: 6666.666667 | G79: kr.
B80: Stik | C80: 2015 | D80: 75 | E80: 500000 | F80: 6666.666667 | G80: kr.
B81: Tryksatte minipumpestationer (husstandssystemer) | C81: 2015 | D81: 30 | E81: 200000 | F81: 6666.666667 | G81: kr.
B82: Ledningsnet = Ø 200 mm | C82: 2015 | D82: 75 | E82: 1400000 | F82: 18666.66667 | G82: kr.
B83: Brønde | C83: 2015 | D83: 75 | E83: 400000 | F83: 5333.333333 | G83: kr.
B84: Stik | C84: 2015 | D84: 75 | E84: 400000 | F84: 5333.333333 | G84: kr.
B85: Ledningsnet = Ø 200 mm | C85: 2015 | D85: 75 | E85: 1200000 | F85: 16000 | G85: kr.
B86: Ø 200 mm < Ledningsnet = Ø 500 mm | C86: 2015 | D86: 75 | E86: 1500000 | F86: 20000 | G86: kr.
B87: Brønde | C87: 2015 | D87: 75 | E87: 600000 | F87: 8000 | G87: kr.
B88: Stik | C88: 2015 | D88: 75 | E88: 600000 | F88: 8000 | G88: kr.
B89: Ledningsnet = Ø 200 mm | C89: 2015 | D89: 75 | E89: 100000 | F89: 1333.333333 | G89: kr.
B90: Brønde | C90: 2015 | D90: 75 | E90: 100000 | F90: 1333.333333 | G90: kr.
B91: Ledningsnet = Ø 200 mm | C91: 2015 | D91: 75 | E91: 100000 | F91: 1333.333333 | G91: kr.
B92: Tryksatte minipumpestationer (husstandssystemer) | C92: 2015 | D92: 30 | E92: 100000 | F92: 3333.333333 | G92: kr.
B93: Ledningsnet = Ø 200 mm | C93: 2015 | D93: 75 | E93: 1100000 | F93: 14666.66667 | G93: kr.
B94: Brønde | C94: 2015 | D94: 75 | E94: 300000 | F94: 4000 | G94: kr.
B95: Tryksatte minipumpestationer (husstandssystemer) | C95: 2015 | D95: 30 | E95: 100000 | F95: 3333.333333 | G95: kr.
B96: Pumpestationer i brønde (< 6,25 m2), Mek/EL | C96: 2015 | D96: 20 | E96: 300000 | F96: 15000 | G96: kr.
B97: Strømpeforing Ø 200 mm < Ledningsnet = Ø 500 mm | C97: 2015 | D97: 50 | E97: 1500000 | F97: 30000 | G97: kr.
B98: Strømpeforing = Ø 200 mm | C98: 2015 | D98: 50 | E98: 1500000 | F98: 30000 | G98: kr.
B99: Pumpestationer i brønde (< 6,25 m2), SRO | C99: 2015 | D99: 10 | E99: 295000 | F99: 29500 | G99: kr.
B100: Tillæg for 2014 | F100: =SUMIF(C8:C99,"2014",F8:F99) -> 839566.6667 | G100: kr.
B101: Tillæg for 2015 | F101: =SUMIF(C8:C99,"2015",F8:F99) -> 510400 | G101: kr.
B102: Tillæg i alt | F102: =F100+F101 -> 1349966.667 | G102: kr.

Sheet 8. 1-1 omkostninger
A1: ='7. Planlagte investeringer'!A1 -> Langeland Spildevand A/S
B4: Fane 8. 1:1 omkostninger
B6: Tillæg for budgetterede 1:1 omkostninger i 2015
B7: Betaling til Forsyningssekretariatet | C7: 33000 | D7: kr.
B8: Spildevandsafgift | C8: 396000 | D8: kr.
B9: Ejendomsskatter | C9: 30000 | D9: kr.
B10: Tillæg i alt | C10: =SUM(C7:C9) -> 459000 | D10: kr.
B15: Tillæg for budgetterede nødvendige udgifter til revisorerklæringer samt ordinært medlemskab af DANVA og FVD i 2015
B16: Betaling for ordinært medlemskab af DANVA/FVD | C16: 19000 | D16: kr.
B17: Betaling for revisorerklæringer | C17: 17000 | D17: kr.
B18: Tillæg i alt | C18: =SUM(C16:C17) -> 36000 | D18: kr.
B21: Korrektion af tillæg for faktiske 1:1 omkostninger (inkl. revisorerklæringer og ordinært medlemskab af DANVA/FVD) i 2013
B22: Selskabets faktiske 1:1 omkostninger mv. i 2013, jf. reguleringsregnskabet | C22: 526256 | D22: kr.
B23: Tillæg for budgetterede 1:1 omkostninger mv. i prisloft 2013 | C23: 757000 | D23: kr.
B24: Korrektion af tillæg for budgetterede 1:1 omkostninger mv. i 2013 | C24: =C22-C23 -> -230744 | D24: kr.

Sheet 9. Miljø- og servicemål
A1: ='8. 1-1 omkostninger'!A1 -> Langeland Spildevand A/S
B4: Fane 9. Driftsomkostninger til miljø- og servicemål
B6: Tillæg for budgetterede driftsomkostninger til miljø- og servicemål i 2015
B7: Drift af RBU - SRO | C7: 25000 | D7: kr.
B8: Tillæg i alt | C8: =SUM(C7:C7) -> 25000 | D8: kr.
B12: Korrektion af tillæg for faktiske driftsomkostninger til miljø- og servicemål i 2013
B13: Selskabets faktiske driftsomkostninger til miljø- og servicemål i 2013, jf. reguleringsregnskabet | C13: 0 | D13: kr.
B14: Tillæg for budgetterede driftsomkostninger til miljø- og servicemål i prisloft 2013 | C14: 0 | D14: kr.
B15: Korrektion af tillæg for budgetterede driftsomkostninger til miljø- og servicemål i 2013 | C15: =C13-C14 -> 0 | D15: kr.

Sheet 10. Klimatilpasning
A1: ='9. Miljø- og servicemål'!A1 -> Langeland Spildevand A/S
B4: Fane 10. Medfinansiering af klimatilpasningsprojekter
B7: Tillæg for budgetterede omkostninger til medfinansiering af klimatilpasningsprojekter i 2015
C8: 0 | D8: kr.
B9: Tillæg i alt | C9: =SUM(C8:C8) -> 0 | D9: kr.
B13: Korrektion af tillæg for faktiske omkostninger til medfinansiering af klimatilpasningsprojekter i 2013
B14: Selskabets faktiske driftsomkostninger til klimatilpasningsprojekter i 2013, jf. reguleringsregnskabet | C14: 0 | D14: kr.
B15: Tillæg for budgetterede driftsomkostninger til klimatilpasningsprojekter i prisloft 2013 | C15: 0 | D15: kr.
B16: Korrektion af tillæg for budgetterede omkostninger til klimatilpasningsprojekter i 2013 | C16: =C14-C15 -> 0 | D16: kr.

Sheet 11. Nettofinansielle poster
A1: ='10. Klimatilpasning'!A1 -> Langeland Spildevand A/S
B4: Fane 11. Nettofinansielle poster
B6: Tillæg for budgetterede nettofinansielle poster i 2015
B7: Budgetterede renteudgifter og gebyrer i 2015 | C7: 750000 | D7: kr.
B8: Budgetterede renteindtægter i 2015 | C8: 140000 | D8: kr.
B9: Tillæg/fradrag i alt | C9: =C7-C8 -> 610000 | D9: kr.
B13: Korrektion af tillæg for faktiske nettofinansielle poster i 2013
B14: Selskabets faktiske nettofinansielle poster i 2013, jf. reguleringsregnskabet | C14: 713370 | D14: kr.
B15: Tillæg for budgetterede nettofinansielle poster i prisloft 2013 | C15: 470500 | D15: kr.
B16: Korrektion af tillæg for budgetterede nettofinansielle poster i 2013 | C16: =C14-C15 -> 242870 | D16: kr.

Sheet 12. Over- eller underdækning
A1: ='11. Nettofinansielle poster'!A1 -> Langeland Spildevand A/S
B4: Fane 12. Over- eller underdækning til og med 2010
B6: Tillæg/fradrag for over- eller underdækning til og med 2010
B7: Opgjort over- eller underdækning per 31. december 2010 | C7: -7825913 | D7: kr.
B8: Heraf beløb indregnet i prislofterne for 2011 - 2014 | C8: -3011889.508 | D8: kr.
B9: Endnu ikke indregnet over- eller underdækning | C9: =C7-C8 -> -4814023.492 | D9: kr.
B10: Resterende indregningsperiode (fastsat i prisloftet for 2012) | C10: 6 | D10: år
B11: Tillæg/fradrag i alt | C11: =IF(C7=0,0,C9/C10) -> -802337.2487 | D11: kr.

Sheet 13. Kontrol med indtægtsrammen
A1: ='12. Over- eller underdækning'!A1 -> Langeland Spildevand A/S
B4: Fane 13. Korrektion for overholdelse af indtægtsrammen i prisloftet for 2013
B6: Samlet opgørelse vedrørende overholdelse af indtægtsrammen i prisloftet for 2013
B7: Indtægtsramme i prisloftet for 2013 | E7: 31863471.18 | F7: kr.
B8: Ikke anvendt likviditet vedrørende investeringer i 2013
B9: Tillæg for historiske investeringer | C9: 13481548.28 | D9: kr.
B10: Tillæg for gennemførte investeringer i 2011 | C10: 293054 | D10: kr.
B11: Korrektion af tillæg for planlagte investeringer i 2011 | C11: -171080 | D11: kr.
B12: Tillæg for planlagte investeringer i 2012 og 2013 | C12: 1021827 | D12: kr.
B13: Indtægter fra tilslutningsbidrag | C13: 4342384 | D13: kr.
B14: Indtægter fra salg af anlægsaktiver | C14: 0 | D14: kr.
B15: Erstatninger vedr. anlægsaktiver mv. | C15: 0 | D15: kr.
B16: Ekstraordinær effektiviseringsgevinst anvendt til investeringer | C16: =E35 -> 1078744 | D16: kr.
B17: Udgifter til investeringer | C17: -18040128 | D17: kr.
B18: Ikke anvendt likviditet vedr. investeringer i alt | C18: =SUM(C9:C17) -> 2006349.284 | D18: kr. | E18: =IF(C18<0,0,-C18) -> -2006349.284 | F18: kr.
B19: Ekstraordinære effektiviseringsgevinster anvendt til takstnedsættelse
B20: Ekstraordinær effektiviseringsgevinst anvendt til takstnedsættelse | C20: 0 | D20: kr. | E20: =-C20 -> 0 | F20: kr.
B21: Korrektion af ikke opkrævet tillæg fra 2011 i prisloft 2013
B22: Korrektion af ikke opkrævet tillæg fra 2011 i prisloft 2013 | C22: 0 | D22: kr. | E22: =-C22 -> 0 | F22: kr.
B23: Indtægter fra primære aktiviteter mv.
B24: Indtægter fra kubikmetertakster, faste takster, særbidrag, målergebyrer samt andre takster og gebyrer | C24: 25942042 | D24: kr.
B25: Andre indtægter i prisloftåret, som selskabet har opnået i forbindelse med eller som følge af selskabets primære aktiviteter | C25: 39904 | D25: kr.
B26: Indtægter fra primære aktiviteter mv. i alt | C26: =SUM(C24:C25) -> 25981946 | D26: kr. | E26: =-C26 -> -25981946 | F26: kr.
B27: Tillæg/fradrag i prisloftet for 2015 i alt | E27: =E7+E18+E20+E22+E26 -> 3875175.894 | F27: kr.
B31: Oversigt over ekstraordinære effektiviseringsgevinster
C33: 2012 | E33: 2013 | G33: 2014 | I33: 2015 | K33: 2016
B34: Indhentet ekstraordinær effektiviseringsgevinst | C34: 0 | D34: kr. | E34: 1078744 | F34: kr. | H34: kr. | J34: kr. | L34: kr.
B35: Gevinst anvendt til investeringer | C35: 0 | D35: kr. | E35: 1078744 | F35: kr. | H35: kr. | J35: kr. | L35: kr.
B36: Gevinst anvendt til takstnedsættelse | C36: 0 | D36: kr. | E36: 0 | F36: kr. | H36: kr. | J36: kr. | L36: kr.
B37: Korrektion for effektiviseringsgevinst der ikke er anvendt inden 4 år | C37: 0 | D37: kr. | E37: 0 | F37: kr. | H37: kr. | J37: kr. | K37: =IF(C38>SUM(C35:I36),C38-SUM(E35:I36),0)*-1 -> 0 | L37: kr.
B38: Resterende gevinst | C38: =C34-C35-C36 -> 0 | D38: kr. | E38: =C38+E34-E35-E36 -> 0 | F38: kr. | G38: =E38+G34-G35-G36 -> 0 | H38: kr. | I38: =G38+I34-I35-I36 -> 0 | J38: kr. | K38: =K34-K35-K36+K37 -> 0 | L38: kr.
